[Event "Late-Titled-Tuesday-Blitz-January-23-2024"]
[Site "Chess.com"]
[Date "2024.01.23"]
[Round "7"]
[White "GoltsevDmitry2000"]
[Black "shimastream"]
[Result "0-1"]
[WhiteElo "2824"]
[BlackElo "3013"]
[TimeControl "180+1"]
[EndTime "15:15:45 PST"]
[Termination "shimastream won by checkmate"]

1. e4 {[%clk 0:02:59.3]} 1... b6 {[%clk 0:03:00.5]} 2. Nc3 {[%clk 0:02:58.9]}
2... Bb7 {[%clk 0:03:00.9]} 3. d4 {[%clk 0:02:59.4]} 3... e6 {[%clk 0:03:01]} 4.
Nf3 {[%clk 0:02:58.3]} 4... Bb4 {[%clk 0:03:00.8]} 5. Bd3 {[%clk 0:02:57.7]}
5... Nf6 {[%clk 0:03:00.8]} 6. Qe2 {[%clk 0:02:57.5]} 6... d5 {[%clk 0:03:00.9]}
7. exd5 {[%clk 0:02:56.8]} 7... Qxd5 {[%clk 0:03:00.5]} 8. a3 {[%clk 0:02:54.5]}
8... Bxc3+ {[%clk 0:03:00.6]} 9. bxc3 {[%clk 0:02:55.4]} 9... Nbd7 {[%clk
0:03:00.2]} 10. Bf4 {[%clk 0:02:52.6]} 10... c5 {[%clk 0:02:44.6]} 11. c4 {[%clk
0:02:47.9]} 11... Qh5 {[%clk 0:02:44]} 12. c3 {[%clk 0:02:08.4]} 12... O-O
{[%clk 0:02:41.3]} 13. O-O {[%clk 0:02:06.9]} 13... Bxf3 {[%clk 0:02:29.9]} 14.
Qxf3 {[%clk 0:02:06.3]} 14... Qxf3 {[%clk 0:02:27.6]} 15. gxf3 {[%clk
0:02:07.2]} 15... Rac8 {[%clk 0:02:25.8]} 16. a4 {[%clk 0:02:03.5]} 16... Nb8
{[%clk 0:02:21.9]} 17. Rfb1 {[%clk 0:01:26.3]} 17... cxd4 {[%clk 0:02:17.9]} 18.
cxd4 {[%clk 0:01:25.6]} 18... Nc6 {[%clk 0:02:18.1]} 19. c5 {[%clk 0:01:06.4]}
19... Nd5 {[%clk 0:02:11.5]} 20. Bd6 {[%clk 0:01:05]} 20... Rfd8 {[%clk
0:02:09.9]} 21. Ba6 {[%clk 0:01:04.7]} 21... Nxd4 {[%clk 0:02:10.3]} 22. Bxc8
{[%clk 0:01:03.5]} 22... Rxc8 {[%clk 0:02:11.2]} 23. cxb6 {[%clk 0:00:57.5]}
23... axb6 {[%clk 0:02:12.1]} 24. a5 {[%clk 0:00:58.2]} 24... bxa5 {[%clk
0:02:10.6]} 25. Rxa5 {[%clk 0:00:57.3]} 25... Nxf3+ {[%clk 0:02:08.1]} 26. Kg2
{[%clk 0:00:53.4]} 26... Nh4+ {[%clk 0:02:08.1]} 27. Kh3 {[%clk 0:00:52.7]}
27... Nf5 {[%clk 0:02:09]} 28. Be5 {[%clk 0:00:42.2]} 28... h5 {[%clk
0:01:56.9]} 29. Rb8 {[%clk 0:00:39.7]} 29... Rxb8 {[%clk 0:01:56.5]} 30. Bxb8
{[%clk 0:00:40.6]} 30... g5 {[%clk 0:01:56.6]} 31. Be5 {[%clk 0:00:37.5]} 31...
Kh7 {[%clk 0:01:52.4]} 32. Kg2 {[%clk 0:00:24.6]} 32... Kg6 {[%clk 0:01:51.6]}
33. Ra8 {[%clk 0:00:24]} 33... f6 {[%clk 0:01:51.5]} 34. Bb8 {[%clk 0:00:22.5]}
34... Nh4+ {[%clk 0:01:48]} 35. Kf1 {[%clk 0:00:20.2]} 35... Nf3 {[%clk
0:01:44.9]} 36. Ra6 {[%clk 0:00:18.8]} 36... Kf5 {[%clk 0:01:44]} 37. Ra3 {[%clk
0:00:17.1]} 37... Nd2+ {[%clk 0:01:42.2]} 38. Kg2 {[%clk 0:00:15.6]} 38... Nc4
{[%clk 0:01:38.7]} 39. Ra4 {[%clk 0:00:14.5]} 39... Ncb6 {[%clk 0:01:38.8]} 40.
Ra1 {[%clk 0:00:14.1]} 40... Nd7 {[%clk 0:01:38.3]} 41. Bd6 {[%clk 0:00:13.1]}
41... e5 {[%clk 0:01:37.9]} 42. Rd1 {[%clk 0:00:11.8]} 42... Nf4+ {[%clk
0:01:37.8]} 43. Kf1 {[%clk 0:00:12.2]} 43... Nb6 {[%clk 0:01:37.8]} 44. Be7
{[%clk 0:00:11.5]} 44... Nbd5 {[%clk 0:01:36.8]} 45. Bd8 {[%clk 0:00:12.1]}
45... g4 {[%clk 0:01:35.7]} 46. Ba5 {[%clk 0:00:11.2]} 46... h4 {[%clk
0:01:25.8]} 47. Bd2 {[%clk 0:00:11.8]} 47... Ne6 {[%clk 0:01:26.3]} 48. Ra1
{[%clk 0:00:11.6]} 48... h3 {[%clk 0:01:23.8]} 49. Be3 {[%clk 0:00:11.3]} 49...
Ne7 {[%clk 0:01:21.6]} 50. Ra4 {[%clk 0:00:09.3]} 50... Ng6 {[%clk 0:01:21]} 51.
Kg1 {[%clk 0:00:08.9]} 51... Nh4 {[%clk 0:01:21]} 52. Kh1 {[%clk 0:00:09]} 52...
Nf3 {[%clk 0:01:21.9]} 53. Rb4 {[%clk 0:00:08.9]} 53... Nc7 {[%clk 0:01:20.6]}
54. Rc4 {[%clk 0:00:06.8]} 54... Nd5 {[%clk 0:01:20.5]} 55. Ra4 {[%clk
0:00:06.6]} 55... Nc3 {[%clk 0:01:20.2]} 56. Rc4 {[%clk 0:00:05.2]} 56... Nd5
{[%clk 0:01:17.2]} 57. Ra4 {[%clk 0:00:05.1]} 57... Nc7 {[%clk 0:00:55.7]} 58.
Rc4 {[%clk 0:00:05.3]} 58... Ne6 {[%clk 0:00:56.2]} 59. Ra4 {[%clk 0:00:05.5]}
59... Ned4 {[%clk 0:00:56.8]} 60. Rc4 {[%clk 0:00:03]} 60... Ke4 {[%clk
0:00:55.4]} 61. Ra4 {[%clk 0:00:03.5]} 61... f5 {[%clk 0:00:55]} 62. Rb4 {[%clk
0:00:03.7]} 62... f4 {[%clk 0:00:55]} 63. Bxd4 {[%clk 0:00:02.9]} 63... exd4
{[%clk 0:00:53.8]} 64. Rb3 {[%clk 0:00:03.2]} 64... Ne5 {[%clk 0:00:49.1]} 65.
Kg1 {[%clk 0:00:02.8]} 65... d3 {[%clk 0:00:49.4]} 66. Rb4+ {[%clk 0:00:02.3]}
66... Kd5 {[%clk 0:00:48.2]} 67. Rb5+ {[%clk 0:00:02.7]} 67... Kd4 {[%clk
0:00:48.2]} 68. Rb2 {[%clk 0:00:02.2]} 68... Kc3 {[%clk 0:00:46]} 69. Rb5 {[%clk
0:00:02]} 69... d2 {[%clk 0:00:45]} 70. Rd5 {[%clk 0:00:02.1]} 70... Nd3 {[%clk
0:00:44.7]} 71. f3 {[%clk 0:00:01.5]} 71... d1=Q# {[%clk 0:00:44.2]} 0-1

[Event "Late-Titled-Tuesday-Blitz-January-23-2024"]
[Site "Chess.com"]
[Date "2024.01.23"]
[Round "7"]
[White "Rodalquilar"]
[Black "Statham_01"]
[Result "1-0"]
[WhiteElo "2759"]
[BlackElo "2555"]
[TimeControl "180+1"]
[EndTime "15:15:52 PST"]
[Termination "Rodalquilar won by checkmate"]

1. d4 {[%clk 0:03:00.9]} 1... e6 {[%clk 0:02:45.1]} 2. Nf3 {[%clk 0:02:59.3]}
2... f5 {[%clk 0:02:42.6]} 3. g3 {[%clk 0:02:50.9]} 3... Nf6 {[%clk 0:02:42.8]}
4. Bg2 {[%clk 0:02:51.4]} 4... d5 {[%clk 0:02:43.1]} 5. O-O {[%clk 0:02:49.9]}
5... c6 {[%clk 0:02:44]} 6. b3 {[%clk 0:02:46.1]} 6... Ne4 {[%clk 0:02:38.4]} 7.
c4 {[%clk 0:02:45.5]} 7... Bd6 {[%clk 0:02:36.7]} 8. Bb2 {[%clk 0:02:40.6]} 8...
O-O {[%clk 0:02:35.5]} 9. Qc1 {[%clk 0:02:41]} 9... f4 {[%clk 0:02:17.5]} 10.
Ba3 {[%clk 0:02:37.8]} 10... fxg3 {[%clk 0:02:16.6]} 11. hxg3 {[%clk 0:02:37.3]}
11... Bxa3 {[%clk 0:02:15]} 12. Nxa3 {[%clk 0:02:30.5]} 12... Bd7 {[%clk
0:02:14.6]} 13. Ne5 {[%clk 0:02:21.5]} 13... Nd6 {[%clk 0:01:53.7]} 14. Bh3
{[%clk 0:01:58.8]} 14... Nf5 {[%clk 0:01:44.1]} 15. Bxf5 {[%clk 0:01:56.6]}
15... Rxf5 {[%clk 0:01:38.9]} 16. Qe3 {[%clk 0:01:47.6]} 16... Be8 {[%clk
0:01:31.4]} 17. Nc2 {[%clk 0:01:25.9]} 17... Nd7 {[%clk 0:01:30.1]} 18. f4
{[%clk 0:01:04.4]} 18... Qb6 {[%clk 0:00:40.1]} 19. c5 {[%clk 0:00:58.8]} 19...
Qd8 {[%clk 0:00:33.6]} 20. b4 {[%clk 0:00:50]} 20... h5 {[%clk 0:00:14.3]} 21.
Nd3 {[%clk 0:00:28.7]} 21... Qe7 {[%clk 0:00:09.1]} 22. Nce1 {[%clk 0:00:28.7]}
22... Nf6 {[%clk 0:00:08.9]} 23. Nf3 {[%clk 0:00:29.1]} 23... Ng4 {[%clk
0:00:09]} 24. Qd2 {[%clk 0:00:28.4]} 24... a5 {[%clk 0:00:05.5]} 25. a3 {[%clk
0:00:28.4]} 25... Bg6 {[%clk 0:00:05.5]} 26. Nde5 {[%clk 0:00:28.3]} 26... Bh7
{[%clk 0:00:04.3]} 27. Ng5 {[%clk 0:00:26.3]} 27... axb4 {[%clk 0:00:04]} 28.
axb4 {[%clk 0:00:26.5]} 28... Raf8 {[%clk 0:00:04.7]} 29. Rf3 {[%clk 0:00:11.6]}
29... Kh8 {[%clk 0:00:05.2]} 30. Ra7 {[%clk 0:00:11.1]} 30... Kg8 {[%clk
0:00:05.2]} 31. Nxc6 {[%clk 0:00:11.3]} 31... Qf6 {[%clk 0:00:03.5]} 32. Ne5
{[%clk 0:00:11.4]} 32... h4 {[%clk 0:00:03.7]} 33. Nd7 {[%clk 0:00:10.1]} 33...
Qh6 {[%clk 0:00:03.5]} 34. Nxf8 {[%clk 0:00:08]} 34... Rxf8 {[%clk 0:00:04.4]}
35. Nxh7 {[%clk 0:00:07.2]} 35... hxg3 {[%clk 0:00:04]} 36. e3 {[%clk
0:00:07.2]} 36... Nf2 {[%clk 0:00:03.8]} 37. Rxg3 {[%clk 0:00:04.9]} 37... Ne4
{[%clk 0:00:02]} 38. Qh2 {[%clk 0:00:05.2]} 38... Qxh7 {[%clk 0:00:01.9]} 39.
Qxh7+ {[%clk 0:00:05.2]} 39... Kxh7 {[%clk 0:00:02.8]} 40. Rh3+ {[%clk
0:00:05.6]} 40... Kg6 {[%clk 0:00:03]} 41. Rxb7 {[%clk 0:00:06.2]} 41... Nc3
{[%clk 0:00:02.5]} 42. Rg3+ {[%clk 0:00:06.4]} 42... Kf5 {[%clk 0:00:03.4]} 43.
Rgxg7 {[%clk 0:00:06.6]} 43... Ke4 {[%clk 0:00:04]} 44. c6 {[%clk 0:00:06.3]}
44... Ra8 {[%clk 0:00:04.4]} 45. Ra7 {[%clk 0:00:06.1]} 45... Rb8 {[%clk
0:00:03.5]} 46. c7 {[%clk 0:00:06.6]} 46... Rh8 {[%clk 0:00:03.7]} 47. Rb7
{[%clk 0:00:03.8]} 47... Ne2+ {[%clk 0:00:04.2]} 48. Kg2 {[%clk 0:00:03.7]}
48... Nc1 {[%clk 0:00:05.1]} 49. Rb8 {[%clk 0:00:04]} 49... Rh6 {[%clk
0:00:02.5]} 50. c8=Q {[%clk 0:00:04.3]} 50... Nd3 {[%clk 0:00:03.4]} 51. Qc2
{[%clk 0:00:04.4]} 51... Kxe3 {[%clk 0:00:03.4]} 52. Rg3+ {[%clk 0:00:04.7]}
52... Kxf4 {[%clk 0:00:03.4]} 53. Rf8+ {[%clk 0:00:04.9]} 53... Rf6 {[%clk
0:00:01.9]} 54. Rxf6+ {[%clk 0:00:04.7]} 54... Ke4 {[%clk 0:00:01.8]} 55. Qxd3#
{[%clk 0:00:05.1]} 1-0

[Event "Late-Titled-Tuesday-Blitz-January-23-2024"]
[Site "Chess.com"]
[Date "2024.01.23"]
[Round "7"]
[White "IranianCheetah"]
[Black "OPQRC"]
[Result "0-1"]
[WhiteElo "2341"]
[BlackElo "2535"]
[TimeControl "180+1"]
[EndTime "15:16:02 PST"]
[Termination "OPQRC won on time"]

1. e4 {[%clk 0:02:59.9]} 1... c6 {[%clk 0:01:53.6]} 2. d4 {[%clk 0:02:34.1]}
2... d5 {[%clk 0:01:54.5]} 3. Nd2 {[%clk 0:02:33.9]} 3... dxe4 {[%clk
0:01:51.5]} 4. Nxe4 {[%clk 0:02:34.8]} 4... Nf6 {[%clk 0:01:52.3]} 5. Nxf6+
{[%clk 0:02:34.9]} 5... exf6 {[%clk 0:01:53.2]} 6. c3 {[%clk 0:02:35.6]} 6...
Bd6 {[%clk 0:01:49.2]} 7. Bd3 {[%clk 0:02:36.5]} 7... O-O {[%clk 0:01:48.5]} 8.
Ne2 {[%clk 0:02:37.4]} 8... Re8 {[%clk 0:01:48.7]} 9. Qc2 {[%clk 0:02:38.3]}
9... h5 {[%clk 0:01:48.9]} 10. h3 {[%clk 0:02:38.4]} 10... h4 {[%clk 0:01:48.9]}
11. Be3 {[%clk 0:02:38.9]} 11... Qc7 {[%clk 0:01:47.6]} 12. c4 {[%clk
0:02:38.9]} 12... Nd7 {[%clk 0:01:47.3]} 13. c5 {[%clk 0:02:36.6]} 13... Bf8
{[%clk 0:01:45.4]} 14. O-O {[%clk 0:02:35.1]} 14... b6 {[%clk 0:01:34.7]} 15. b4
{[%clk 0:02:34.4]} 15... a5 {[%clk 0:01:35.1]} 16. a3 {[%clk 0:02:33.8]} 16...
Ba6 {[%clk 0:01:35.7]} 17. Bxa6 {[%clk 0:02:28.8]} 17... Rxa6 {[%clk 0:01:36.6]}
18. Rac1 {[%clk 0:02:24.7]} 18... axb4 {[%clk 0:01:33]} 19. axb4 {[%clk
0:02:24.7]} 19... g6 {[%clk 0:01:32.3]} 20. Nc3 {[%clk 0:02:03]} 20... b5 {[%clk
0:01:26.5]} 21. d5 {[%clk 0:02:00.1]} 21... f5 {[%clk 0:01:26.1]} 22. d6 {[%clk
0:01:59]} 22... Qc8 {[%clk 0:01:20.9]} 23. Bd4 {[%clk 0:01:47.9]} 23... Bg7
{[%clk 0:01:13.4]} 24. Qd2 {[%clk 0:01:42.2]} 24... Ra3 {[%clk 0:01:06.9]} 25.
Rfe1 {[%clk 0:01:33.3]} 25... Bxd4 {[%clk 0:01:04]} 26. Qxd4 {[%clk 0:01:31.7]}
26... Rb3 {[%clk 0:01:01.6]} 27. Rxe8+ {[%clk 0:01:17.6]} 27... Qxe8 {[%clk
0:01:01.1]} 28. Ra1 {[%clk 0:00:51]} 28... Qe5 {[%clk 0:00:57.5]} 29. Qxe5
{[%clk 0:00:32.7]} 29... Nxe5 {[%clk 0:00:58.4]} 30. Ra8+ {[%clk 0:00:29.1]}
30... Kg7 {[%clk 0:00:58.3]} 31. Re8 {[%clk 0:00:13.6]} 31... Kf6 {[%clk
0:00:51.7]} 32. Ne2 {[%clk 0:00:11.3]} 32... Rxb4 {[%clk 0:00:47.3]} 33. f4
{[%clk 0:00:07.8]} 33... Nd7 {[%clk 0:00:44.3]} 34. Re7 {[%clk 0:00:07.7]} 34...
Nxc5 {[%clk 0:00:43]} 35. Rc7 {[%clk 0:00:07.9]} 35... Ne4 {[%clk 0:00:31.8]}
36. Rxc6 {[%clk 0:00:08]} 36... Ng3 {[%clk 0:00:29.1]} 37. Nxg3 {[%clk
0:00:07.5]} 37... hxg3 {[%clk 0:00:28.6]} 38. Kf1 {[%clk 0:00:08.1]} 38... Ke6
{[%clk 0:00:22.5]} 39. Ke2 {[%clk 0:00:06.7]} 39... Rxf4 {[%clk 0:00:22.8]} 40.
Rb6 {[%clk 0:00:05.9]} 40... Rf2+ {[%clk 0:00:21.8]} 41. Ke3 {[%clk 0:00:06.3]}
41... Rxg2 {[%clk 0:00:22.4]} 42. Kf3 {[%clk 0:00:02.4]} 42... Rb2 {[%clk
0:00:21.1]} 43. Kxg3 {[%clk 0:00:02.6]} 43... b4 {[%clk 0:00:21.5]} 44. Kf4
{[%clk 0:00:02.4]} 44... b3 {[%clk 0:00:22]} 45. h4 {[%clk 0:00:01.2]} 45... Rb1
{[%clk 0:00:18.6]} 46. Kg5 {[%clk 0:00:02.1]} 46... b2 {[%clk 0:00:16.8]} 47.
d7+ {[%clk 0:00:02.9]} 47... Kxd7 {[%clk 0:00:16.5]} 48. Kf6 {[%clk 0:00:03.8]}
48... f4 {[%clk 0:00:16.2]} 49. Rb3 {[%clk 0:00:04]} 49... f3 {[%clk 0:00:15.1]}
50. Rd3+ {[%clk 0:00:04.3]} 50... Kc6 {[%clk 0:00:14.7]} 51. Rc3+ {[%clk
0:00:03.5]} 51... Kd5 {[%clk 0:00:14.5]} 52. Rxf3 {[%clk 0:00:03]} 52... Rd1
{[%clk 0:00:11.8]} 53. Rb3 {[%clk 0:00:02.9]} 53... Rf1+ {[%clk 0:00:08.1]} 54.
Kg7 {[%clk 0:00:02.7]} 54... b1=Q {[%clk 0:00:08.4]} 55. Rxb1 {[%clk 0:00:03]}
55... Rxb1 {[%clk 0:00:09.3]} 56. Kxf7 {[%clk 0:00:03.7]} 56... Rh1 {[%clk
0:00:08.3]} 57. Kxg6 {[%clk 0:00:02.6]} 57... Rxh4 {[%clk 0:00:08.1]} 58. Kf6
{[%clk 0:00:03.3]} 58... Re4 {[%clk 0:00:08.5]} 59. Kg5 {[%clk 0:00:03.5]} 59...
Re5+ {[%clk 0:00:09.4]} 60. Kg6 {[%clk 0:00:04.2]} 60... Ke6 {[%clk 0:00:09.8]}
61. Kg7 {[%clk 0:00:04.7]} 61... Rg5+ {[%clk 0:00:10.2]} 62. Kf8 {[%clk
0:00:04.8]} 62... Rg1 {[%clk 0:00:09.5]} 0-1

[Event "Late-Titled-Tuesday-Blitz-January-23-2024"]
[Site "Chess.com"]
[Date "2024.01.23"]
[Round "7"]
[White "mbojan"]
[Black "sergoy"]
[Result "0-1"]
[WhiteElo "2872"]
[BlackElo "3033"]
[TimeControl "180+1"]
[EndTime "15:16:03 PST"]
[Termination "sergoy won on time"]

1. e4 {[%clk 0:03:00.9]} 1... c5 {[%clk 0:02:59.8]} 2. Nf3 {[%clk 0:03:01.2]}
2... d6 {[%clk 0:03:00.5]} 3. d4 {[%clk 0:03:01.7]} 3... cxd4 {[%clk 0:03:01.4]}
4. Nxd4 {[%clk 0:03:02.5]} 4... Nf6 {[%clk 0:03:01.6]} 5. Nc3 {[%clk 0:03:03.1]}
5... a6 {[%clk 0:03:02.3]} 6. Be2 {[%clk 0:03:03.5]} 6... e5 {[%clk 0:03:02.5]}
7. Nb3 {[%clk 0:03:03.8]} 7... Be7 {[%clk 0:03:02.7]} 8. O-O {[%clk 0:03:04.3]}
8... O-O {[%clk 0:03:02.6]} 9. Qd3 {[%clk 0:03:04.7]} 9... Be6 {[%clk 0:03:01]}
10. Bd2 {[%clk 0:03:05.1]} 10... Nbd7 {[%clk 0:02:50.7]} 11. Nd5 {[%clk
0:03:04.3]} 11... Rc8 {[%clk 0:02:34.9]} 12. c4 {[%clk 0:02:58.5]} 12... Re8
{[%clk 0:02:00.7]} 13. Rac1 {[%clk 0:02:49.5]} 13... Bf8 {[%clk 0:01:57.2]} 14.
Rfd1 {[%clk 0:02:38.2]} 14... b6 {[%clk 0:01:57.6]} 15. Be3 {[%clk 0:02:18.3]}
15... a5 {[%clk 0:01:56]} 16. f3 {[%clk 0:02:16.4]} 16... a4 {[%clk 0:01:51.4]}
17. Nd2 {[%clk 0:02:16.4]} 17... Nc5 {[%clk 0:01:51.8]} 18. Qb1 {[%clk 0:02:15]}
18... Nxd5 {[%clk 0:01:35.3]} 19. cxd5 {[%clk 0:02:13.3]} 19... Bd7 {[%clk
0:01:35.9]} 20. b4 {[%clk 0:01:42.3]} 20... axb3 {[%clk 0:01:36.8]} 21. axb3
{[%clk 0:01:43.2]} 21... Ra8 {[%clk 0:01:36.8]} 22. b4 {[%clk 0:01:29.6]} 22...
Na4 {[%clk 0:01:36.6]} 23. Nc4 {[%clk 0:01:22.6]} 23... g6 {[%clk 0:01:31.6]}
24. Bf1 {[%clk 0:01:19.9]} 24... Rc8 {[%clk 0:01:23.9]} 25. Qb3 {[%clk
0:01:18.5]} 25... f5 {[%clk 0:01:18.1]} 26. exf5 {[%clk 0:01:02.2]} 26... gxf5
{[%clk 0:01:19]} 27. Na3 {[%clk 0:01:02.5]} 27... e4 {[%clk 0:01:07.7]} 28. f4
{[%clk 0:01:01.2]} 28... Bg7 {[%clk 0:01:06]} 29. Nb5 {[%clk 0:00:43.7]} 29...
Bxb5 {[%clk 0:00:49.6]} 30. Bxb5 {[%clk 0:00:36.2]} 30... Nc3 {[%clk 0:00:46.6]}
31. Bxe8 {[%clk 0:00:31.5]} 31... Nxd1 {[%clk 0:00:46.8]} 32. Qxd1 {[%clk
0:00:23.6]} 32... Qxe8 {[%clk 0:00:43]} 33. h3 {[%clk 0:00:21.6]} 33... b5
{[%clk 0:00:40.1]} 34. Qf1 {[%clk 0:00:15.5]} 34... Ra8 {[%clk 0:00:36.1]} 35.
Kh2 {[%clk 0:00:12.3]} 35... Ra3 {[%clk 0:00:33]} 36. Qe2 {[%clk 0:00:12.6]}
36... Rd3 {[%clk 0:00:30.8]} 37. Rc6 {[%clk 0:00:08.6]} 37... Bf8 {[%clk
0:00:31.1]} 38. Qc2 {[%clk 0:00:08.7]} 38... Rxe3 {[%clk 0:00:30.4]} 39. Rc8
{[%clk 0:00:08.8]} 39... Qg6 {[%clk 0:00:30.3]} 40. Qf2 {[%clk 0:00:07.8]} 40...
Rd3 {[%clk 0:00:27.4]} 41. Qh4 {[%clk 0:00:07.5]} 41... Qg7 {[%clk 0:00:26.4]}
42. Rb8 {[%clk 0:00:02]} 42... e3 {[%clk 0:00:26.1]} 43. Re8 {[%clk 0:00:02]}
43... h6 {[%clk 0:00:20.4]} 44. Re6 {[%clk 0:00:02.6]} 44... Qf7 {[%clk
0:00:08.5]} 45. Qg3+ {[%clk 0:00:02.3]} 45... Kh7 {[%clk 0:00:09.1]} 46. Rxe3
{[%clk 0:00:02.2]} 46... Rxe3 {[%clk 0:00:09.2]} 47. Qxe3 {[%clk 0:00:03.1]}
47... Qxd5 {[%clk 0:00:09.7]} 48. Qe8 {[%clk 0:00:03.9]} 48... Bg7 {[%clk
0:00:10]} 49. Qd7 {[%clk 0:00:02.8]} 49... Qe4 {[%clk 0:00:08.3]} 50. Qxb5
{[%clk 0:00:02.9]} 50... Qxf4+ {[%clk 0:00:08.7]} 51. Kh1 {[%clk 0:00:03.7]}
51... Be5 {[%clk 0:00:07.7]} 52. Qd7+ {[%clk 0:00:03.5]} 52... Bg7 {[%clk
0:00:07.7]} 53. b5 {[%clk 0:00:03.5]} 53... Kg6 {[%clk 0:00:05]} 54. Qe8+ {[%clk
0:00:03.4]} 54... Kg5 {[%clk 0:00:04.8]} 55. Qd8+ {[%clk 0:00:02.8]} 55... Bf6
{[%clk 0:00:05.4]} 56. Qg8+ {[%clk 0:00:02.5]} 56... Kh4 {[%clk 0:00:05.6]} 57.
Qd5 {[%clk 0:00:01.8]} 57... Qf1+ {[%clk 0:00:05]} 58. Kh2 {[%clk 0:00:01.9]}
58... Be5+ {[%clk 0:00:05.7]} 59. Qxe5 {[%clk 0:00:01.8]} 59... dxe5 {[%clk
0:00:06.6]} 60. g3+ {[%clk 0:00:01.9]} 60... Kg5 {[%clk 0:00:06.8]} 0-1

[Event "Late-Titled-Tuesday-Blitz-January-23-2024"]
[Site "Chess.com"]
[Date "2024.01.23"]
[Round "7"]
[White "Andrej2004"]
[Black "Herman-NY"]
[Result "0-1"]
[WhiteElo "2605"]
[BlackElo "2494"]
[TimeControl "180+1"]
[EndTime "15:16:04 PST"]
[Termination "Herman-NY won by resignation"]

1. g3 {[%clk 0:03:00.9]} 1... h5 {[%clk 0:02:58.6]} 2. Bg2 {[%clk 0:02:58.4]}
2... h4 {[%clk 0:02:58.9]} 3. gxh4 {[%clk 0:02:59.3]} 3... Rxh4 {[%clk
0:02:58.3]} 4. d4 {[%clk 0:02:58.2]} 4... d5 {[%clk 0:02:37.4]} 5. Nf3 {[%clk
0:02:57.6]} 5... Rh8 {[%clk 0:02:33.8]} 6. c4 {[%clk 0:02:57.3]} 6... e6 {[%clk
0:02:29]} 7. Nc3 {[%clk 0:02:57]} 7... Nf6 {[%clk 0:02:28.8]} 8. Qc2 {[%clk
0:02:56.2]} 8... c6 {[%clk 0:02:19.9]} 9. e4 {[%clk 0:02:55.6]} 9... dxe4 {[%clk
0:02:19.6]} 10. Nxe4 {[%clk 0:02:55.2]} 10... Nxe4 {[%clk 0:02:19.9]} 11. Qxe4
{[%clk 0:02:54.9]} 11... Bb4+ {[%clk 0:02:01.5]} 12. Ke2 {[%clk 0:02:52]} 12...
Nd7 {[%clk 0:01:57.4]} 13. Bf4 {[%clk 0:02:36.7]} 13... Nf6 {[%clk 0:01:47.2]}
14. Qd3 {[%clk 0:02:36.5]} 14... Nh5 {[%clk 0:01:08.4]} 15. Be5 {[%clk
0:02:34.9]} 15... Bd6 {[%clk 0:01:01.3]} 16. Bg3 {[%clk 0:02:18.7]} 16... Nf4+
{[%clk 0:00:56]} 17. Bxf4 {[%clk 0:02:18.7]} 17... Bxf4 {[%clk 0:00:56.9]} 18.
Qe4 {[%clk 0:02:18.3]} 18... Qf6 {[%clk 0:00:45.7]} 19. Ne5 {[%clk 0:02:13.5]}
19... Rh4 {[%clk 0:00:41.9]} 20. Nf3 {[%clk 0:02:04.3]} 20... Rh5 {[%clk
0:00:36.9]} 21. Rad1 {[%clk 0:01:52.7]} 21... Bd7 {[%clk 0:00:33.4]} 22. Kd3
{[%clk 0:01:38.6]} 22... O-O-O {[%clk 0:00:21.3]} 23. Kc3 {[%clk 0:01:38.1]}
23... Kb8 {[%clk 0:00:17.4]} 24. h3 {[%clk 0:01:35.8]} 24... Bc8 {[%clk
0:00:15.4]} 25. Rhe1 {[%clk 0:01:34.7]} 25... c5 {[%clk 0:00:13.3]} 26. b4
{[%clk 0:01:20.3]} 26... cxd4+ {[%clk 0:00:13.1]} 27. Rxd4 {[%clk 0:01:20.3]}
27... Rxd4 {[%clk 0:00:07]} 28. Qxd4 {[%clk 0:01:21.2]} 28... Qxd4+ {[%clk
0:00:04.9]} 29. Kxd4 {[%clk 0:01:18.5]} 29... Bc7 {[%clk 0:00:02.9]} 30. c5
{[%clk 0:01:14.3]} 30... f6 {[%clk 0:00:02.9]} 31. Kc3 {[%clk 0:01:12.9]} 31...
Bd7 {[%clk 0:00:03.2]} 32. Nd2 {[%clk 0:01:11.2]} 32... Be5+ {[%clk 0:00:02.7]}
33. Kb3 {[%clk 0:01:10.7]} 33... Rg5 {[%clk 0:00:03.2]} 34. Bf3 {[%clk
0:01:10.2]} 34... Rf5 {[%clk 0:00:03.2]} 35. Re3 {[%clk 0:01:07.9]} 35... Kc7
{[%clk 0:00:01.6]} 36. Nc4 {[%clk 0:01:00.1]} 36... Bd4 {[%clk 0:00:01.9]} 37.
Rd3 {[%clk 0:00:59.8]} 37... Bxf2 {[%clk 0:00:02.2]} 38. Bxb7 {[%clk 0:00:59.9]}
38... Bb5 {[%clk 0:00:01.8]} 39. Be4 {[%clk 0:00:54.8]} 39... Rh5 {[%clk
0:00:01.5]} 40. Rf3 {[%clk 0:00:53.2]} 40... Bxc4+ {[%clk 0:00:01.8]} 41. Kxc4
{[%clk 0:00:53.7]} 41... Bg1 {[%clk 0:00:02.3]} 42. Kb5 {[%clk 0:00:48.9]} 42...
f5 {[%clk 0:00:02.2]} 43. Bd3 {[%clk 0:00:48.1]} 43... g6 {[%clk 0:00:03.1]} 44.
a4 {[%clk 0:00:43.9]} 44... e5 {[%clk 0:00:03.6]} 45. a5 {[%clk 0:00:39.9]}
45... Bd4 {[%clk 0:00:03.9]} 46. a6 {[%clk 0:00:36.6]} 46... Rh7 {[%clk
0:00:04]} 47. Rf1 {[%clk 0:00:30.8]} 47... e4 {[%clk 0:00:04.5]} 48. Be2 {[%clk
0:00:31.3]} 48... Rxh3 {[%clk 0:00:04.3]} 49. Kc4 {[%clk 0:00:31.2]} 49... Be5
{[%clk 0:00:04.1]} 50. Kd5 {[%clk 0:00:31.3]} 50... Bc3 {[%clk 0:00:04.5]} 51.
b5 {[%clk 0:00:30.9]} 51... Rh7 {[%clk 0:00:03.9]} 52. Rg1 {[%clk 0:00:28.9]}
52... Rg7 {[%clk 0:00:03.8]} 53. Ke6 {[%clk 0:00:28.2]} 53... Bb4 {[%clk
0:00:04]} 54. Kd5 {[%clk 0:00:27.9]} 54... Bc3 {[%clk 0:00:04.1]} 55. Rb1 {[%clk
0:00:25.8]} 55... Kb8 {[%clk 0:00:03.5]} 56. b6 {[%clk 0:00:25.9]} 56... Ba5
{[%clk 0:00:03.5]} 57. b7 {[%clk 0:00:24]} 57... Bc7 {[%clk 0:00:03.1]} 58. Rh1
{[%clk 0:00:23.1]} 58... Rg8 {[%clk 0:00:03.7]} 59. Kc6 {[%clk 0:00:19.4]} 59...
Re8 {[%clk 0:00:03.8]} 60. Kd7 {[%clk 0:00:18.7]} 60... Rd8+ {[%clk 0:00:03.6]}
61. Ke6 {[%clk 0:00:19.2]} 61... f4 {[%clk 0:00:04.5]} 62. Kf6 {[%clk 0:00:15]}
62... f3 {[%clk 0:00:05.1]} 63. Bc4 {[%clk 0:00:15.2]} 63... e3 {[%clk
0:00:05.3]} 64. Kxg6 {[%clk 0:00:15]} 64... e2 {[%clk 0:00:05.4]} 65. Kf5 {[%clk
0:00:13.9]} 65... Re8 {[%clk 0:00:05.7]} 66. Bxe2 {[%clk 0:00:06.2]} 66... fxe2
{[%clk 0:00:05.7]} 67. Re1 {[%clk 0:00:06.8]} 67... Ba5 {[%clk 0:00:06]} 68. c6
{[%clk 0:00:06.2]} 68... Bxe1 {[%clk 0:00:05.2]} 0-1